[Event "*** Titled Tuesday Blitz"]
[Site "Chess.com"]
[Date "2020.05.19"]
[Round "3"]
[White "AnonymousBread"]
[Black "RojonR"]
[Result "1/2-1/2"]
[WhiteElo "2589"]
[BlackElo "2406"]
[TimeControl "180+1"]
[EndTime "12:29:54 PDT"]
[Termination "Game drawn by agreement"]

1. d4 {[%clk 0:03:00.9]} 1... Nf6 {[%clk 0:02:58.5]} 2. Nc3 {[%clk 0:03:01]}
2... d5 {[%clk 0:02:58]} 3. Bf4 {[%clk 0:03:01.1]} 3... a6 {[%clk 0:02:58.1]} 4.
e3 {[%clk 0:03:01.7]} 4... c5 {[%clk 0:02:58.1]} 5. dxc5 {[%clk 0:03:01.7]} 5...
Nc6 {[%clk 0:02:58.3]} 6. Nf3 {[%clk 0:03:02.1]} 6... Bg4 {[%clk 0:02:57.1]} 7.
Be2 {[%clk 0:03:02.4]} 7... e6 {[%clk 0:02:52.8]} 8. a3 {[%clk 0:02:59.7]} 8...
Bxc5 {[%clk 0:02:51.5]} 9. h3 {[%clk 0:03:00.1]} 9... Bh5 {[%clk 0:02:48.4]} 10.
O-O {[%clk 0:02:57]} 10... O-O {[%clk 0:02:44.5]} 11. Ne5 {[%clk 0:02:53.7]}
11... Bxe2 {[%clk 0:02:30]} 12. Qxe2 {[%clk 0:02:54.6]} 12... Rc8 {[%clk
0:02:24.2]} 13. Rad1 {[%clk 0:02:44.6]} 13... Qe7 {[%clk 0:02:19.5]} 14. Na4
{[%clk 0:02:36]} 14... Bd6 {[%clk 0:02:14.9]} 15. Nxc6 {[%clk 0:02:33.9]} 15...
Rxc6 {[%clk 0:02:15.8]} 16. Bxd6 {[%clk 0:02:33.9]} 16... Qxd6 {[%clk
0:02:05.8]} 17. c4 {[%clk 0:02:34.4]} 17... Qe5 {[%clk 0:01:48.8]} 18. cxd5
{[%clk 0:02:30]} 18... Nxd5 {[%clk 0:01:49.7]} 19. e4 {[%clk 0:02:07.1]} 19...
Nf4 {[%clk 0:01:43]} 20. Qf3 {[%clk 0:02:04.8]} 20... h6 {[%clk 0:01:09.2]} 21.
b4 {[%clk 0:02:03]} 21... b6 {[%clk 0:00:58.2]} 22. Rc1 {[%clk 0:01:46.7]} 22...
Rfc8 {[%clk 0:00:57.5]} 23. Rxc6 {[%clk 0:01:44.7]} 23... Rxc6 {[%clk
0:00:58.4]} 24. Rd1 {[%clk 0:01:45]} 24... Rc2 {[%clk 0:00:50.9]} 25. Nxb6
{[%clk 0:01:40.5]} 25... Ne2+ {[%clk 0:00:46.5]} 26. Kh1 {[%clk 0:01:40.6]}
26... Nc3 {[%clk 0:00:34.7]} 27. Re1 {[%clk 0:01:14.4]} 27... Qd4 {[%clk
0:00:30.2]} 28. Qe3 {[%clk 0:00:50.9]} 28... e5 {[%clk 0:00:26.8]} 29. Nd5
{[%clk 0:00:18.5]} 29... Nxd5 {[%clk 0:00:13.3]} 30. Qxd4 {[%clk 0:00:17.3]}
30... exd4 {[%clk 0:00:13]} 31. exd5 {[%clk 0:00:18.2]} 31... d3 {[%clk
0:00:13.6]} 32. Rd1 {[%clk 0:00:18.2]} 32... d2 {[%clk 0:00:13.3]} 33. Kh2
{[%clk 0:00:18.9]} 33... Kf8 {[%clk 0:00:13.5]} 34. Kg3 {[%clk 0:00:19.4]} 34...
Ke7 {[%clk 0:00:13.9]} 35. Kf3 {[%clk 0:00:19.5]} 35... Kd6 {[%clk 0:00:14.4]}
36. Ke2 {[%clk 0:00:19.9]} 36... Ra2 {[%clk 0:00:11.4]} 37. Rxd2 {[%clk
0:00:19.1]} 37... Rxa3 {[%clk 0:00:12.1]} 38. g3 {[%clk 0:00:18.3]} 38... a5
{[%clk 0:00:11.3]} 39. bxa5 {[%clk 0:00:17.9]} 39... Rxa5 {[%clk 0:00:11.5]} 40.
Ke3 {[%clk 0:00:18.6]} 40... Rxd5 {[%clk 0:00:11.9]} 41. Ra2 {[%clk 0:00:19.3]}
41... Ke6 {[%clk 0:00:11.3]} 42. Ra6+ {[%clk 0:00:19.1]} 42... Rd6 {[%clk
0:00:11.1]} 43. Ra7 {[%clk 0:00:20]} 43... Rd7 {[%clk 0:00:11.1]} 44. Ra4 {[%clk
0:00:20.3]} 44... Rd6 {[%clk 0:00:10]} 45. h4 {[%clk 0:00:20.7]} 45... Kf6
{[%clk 0:00:10.4]} 46. Kf3 {[%clk 0:00:21.2]} 46... h5 {[%clk 0:00:10.6]} 47.
Ra7 {[%clk 0:00:21.7]} 47... g6 {[%clk 0:00:10.9]} 48. Ra5 {[%clk 0:00:22.3]}
48... Kg7 {[%clk 0:00:11.4]} 49. Kg2 {[%clk 0:00:22.1]} 49... Rf6 {[%clk
0:00:12]} 50. Ra4 {[%clk 0:00:22.6]} 50... Re6 {[%clk 0:00:12.6]} 51. Rd4 {[%clk
0:00:23.1]} 51... Rf6 {[%clk 0:00:13.2]} 52. f3 {[%clk 0:00:23.2]} 52... Re6
{[%clk 0:00:13.8]} 53. g4 {[%clk 0:00:22.9]} 53... hxg4 {[%clk 0:00:13.8]} 54.
fxg4 {[%clk 0:00:23.8]} 54... Re2+ {[%clk 0:00:14.1]} 55. Kg3 {[%clk 0:00:24]}
55... Ra2 {[%clk 0:00:15]} 56. Rd3 {[%clk 0:00:24]} 56... Ra4 {[%clk 0:00:15.1]}
57. Rf3 {[%clk 0:00:24.2]} 57... Ra5 {[%clk 0:00:15.3]} 58. Rf4 {[%clk 0:00:24]}
58... Ra6 {[%clk 0:00:15.5]} 59. g5 {[%clk 0:00:24]} 59... Ra3+ {[%clk
0:00:15.8]} 60. Kg4 {[%clk 0:00:24.6]} 60... Ra1 {[%clk 0:00:16.4]} 61. Rf3
{[%clk 0:00:25]} 61... Rg1+ {[%clk 0:00:16.5]} 62. Kh3 {[%clk 0:00:25]} 62...
Rh1+ {[%clk 0:00:16.5]} 63. Kg3 {[%clk 0:00:25.7]} 63... Rg1+ {[%clk 0:00:16.8]}
64. Kh2 {[%clk 0:00:26.3]} 64... Ra1 {[%clk 0:00:16.8]} 65. Rf4 {[%clk
0:00:26.5]} 65... Ra2+ {[%clk 0:00:16.9]} 66. Kg3 {[%clk 0:00:26.9]} 66... Ra3+
{[%clk 0:00:17.4]} 67. Kg4 {[%clk 0:00:27.2]} 67... Ra1 {[%clk 0:00:18]} 68. Rc4
{[%clk 0:00:26.6]} 68... Rg1+ {[%clk 0:00:18.5]} 69. Kf4 {[%clk 0:00:26.7]}
69... Rf1+ {[%clk 0:00:18.4]} 70. Ke5 {[%clk 0:00:26.9]} 70... Re1+ {[%clk
0:00:18.9]} 71. Kd6 {[%clk 0:00:26.9]} 71... Rd1+ {[%clk 0:00:19.2]} 72. Kc7
{[%clk 0:00:27]} 72... Rd2 {[%clk 0:00:19.6]} 73. Rf4 {[%clk 0:00:25.1]} 73...
Rd1 {[%clk 0:00:19.1]} 74. Kc6 {[%clk 0:00:25]} 74... Rd2 {[%clk 0:00:19.4]} 75.
Kc5 {[%clk 0:00:25.1]} 75... Rd1 {[%clk 0:00:19.9]} 76. Kc4 {[%clk 0:00:22.6]}
76... Rd2 {[%clk 0:00:20]} 77. Kc3 {[%clk 0:00:22.9]} 77... Rd1 {[%clk
0:00:20.3]} 1/2-1/2

[Event "*** Titled Tuesday Blitz"]
[Site "Chess.com"]
[Date "2020.05.19"]
[Round "3"]
[White "viktorskliarov"]
[Black "viviania"]
[Result "0-1"]
[WhiteElo "2587"]
[BlackElo "2886"]
[TimeControl "180+1"]
[EndTime "12:29:55 PDT"]
[Termination "viviania won by resignation"]

1. e4 {[%clk 0:03:00.9]} 1... e6 {[%clk 0:02:59.4]} 2. d4 {[%clk 0:03:00.5]}
2... d5 {[%clk 0:02:59.4]} 3. e5 {[%clk 0:02:59.9]} 3... c5 {[%clk 0:02:58.7]}
4. c3 {[%clk 0:02:59.5]} 4... Nc6 {[%clk 0:02:58.7]} 5. Nf3 {[%clk 0:02:59.3]}
5... Qb6 {[%clk 0:02:58.7]} 6. a3 {[%clk 0:02:59.3]} 6... c4 {[%clk 0:02:58.7]}
7. Nbd2 {[%clk 0:02:58.9]} 7... Bd7 {[%clk 0:02:56]} 8. g3 {[%clk 0:02:57.6]}
8... f6 {[%clk 0:02:42.3]} 9. h4 {[%clk 0:02:54.5]} 9... fxe5 {[%clk 0:02:35.5]}
10. dxe5 {[%clk 0:02:54.2]} 10... Bc5 {[%clk 0:02:35.3]} 11. Qe2 {[%clk
0:02:54]} 11... Nh6 {[%clk 0:02:14.3]} 12. Bh3 {[%clk 0:02:49]} 12... O-O {[%clk
0:02:14]} 13. O-O {[%clk 0:02:48.1]} 13... Rae8 {[%clk 0:02:02]} 14. Rb1 {[%clk
0:02:34.8]} 14... Na5 {[%clk 0:01:44.6]} 15. Re1 {[%clk 0:02:04.7]} 15... Nf5
{[%clk 0:01:37.9]} 16. Kg2 {[%clk 0:02:01]} 16... Ba4 {[%clk 0:01:37.5]} 17. Nf1
{[%clk 0:02:00.4]} 17... Bc6 {[%clk 0:01:13.2]} 18. Bxf5 {[%clk 0:01:00.5]}
18... Rxf5 {[%clk 0:01:11.9]} 19. Nd4 {[%clk 0:01:01.2]} 19... Bxd4 {[%clk
0:01:07.3]} 20. cxd4 {[%clk 0:01:00.8]} 20... Qxd4 {[%clk 0:01:01]} 21. Bd2
{[%clk 0:00:41.1]} 21... Nb3 {[%clk 0:00:49]} 22. Bc3 {[%clk 0:00:33]} 22... Qc5
{[%clk 0:00:42.2]} 23. Bb4 {[%clk 0:00:24.7]} 23... d4+ {[%clk 0:00:41.3]} 24.
Kh2 {[%clk 0:00:24.7]} 24... Qd5 {[%clk 0:00:39]} 25. f3 {[%clk 0:00:25.1]}
25... Rxf3 {[%clk 0:00:35.8]} 26. Nd2 {[%clk 0:00:25.4]} 26... Nxd2 {[%clk
0:00:31.2]} 27. Qxd2 {[%clk 0:00:25.6]} 27... Rd8 {[%clk 0:00:20.1]} 28. Bd6
{[%clk 0:00:25.5]} 28... Rd7 {[%clk 0:00:19.8]} 29. Rf1 {[%clk 0:00:24.7]} 29...
Rdf7 {[%clk 0:00:18.5]} 30. Rxf3 {[%clk 0:00:22.3]} 30... Qxf3 {[%clk
0:00:18.3]} 31. Re1 {[%clk 0:00:19.7]} 31... c3 {[%clk 0:00:14.8]} 32. bxc3
{[%clk 0:00:19.3]} 32... dxc3 {[%clk 0:00:14.8]} 33. Qe2 {[%clk 0:00:19.6]}
33... h6 {[%clk 0:00:11.9]} 34. Qxf3 {[%clk 0:00:18.9]} 34... Rxf3 {[%clk
0:00:11.7]} 35. Rc1 {[%clk 0:00:19]} 35... Be4 {[%clk 0:00:09.8]} 36. Bb4 {[%clk
0:00:14.5]} 36... c2 {[%clk 0:00:09.5]} 37. Kh3 {[%clk 0:00:14.8]} 37... h5
{[%clk 0:00:08.3]} 38. Bd2 {[%clk 0:00:15]} 38... b6 {[%clk 0:00:08.1]} 39. Bg5
{[%clk 0:00:14.8]} 39... Kf7 {[%clk 0:00:07.9]} 40. Bf4 {[%clk 0:00:15]} 40...
Kg6 {[%clk 0:00:07.8]} 41. Kh2 {[%clk 0:00:15.4]} 41... Kf5 {[%clk 0:00:07.9]}
42. a4 {[%clk 0:00:15.3]} 42... Kg4 {[%clk 0:00:07.4]} 43. Re1 {[%clk
0:00:13.7]} 43... Rf2+ {[%clk 0:00:07.2]} 44. Kg1 {[%clk 0:00:13.4]} 44... Rg2+
{[%clk 0:00:06.8]} 45. Kf1 {[%clk 0:00:13.8]} 45... Bd5 {[%clk 0:00:06.6]} 46.
Rc1 {[%clk 0:00:12.3]} 46... Rh2 {[%clk 0:00:06]} 47. Ke1 {[%clk 0:00:12]} 47...
Kf3 {[%clk 0:00:05.1]} 48. Ra1 {[%clk 0:00:11]} 48... Rh1+ {[%clk 0:00:03.9]}
49. Kd2 {[%clk 0:00:11.5]} 49... Rxa1 {[%clk 0:00:03.6]} 50. Kxc2 {[%clk
0:00:12.2]} 50... Rxa4 {[%clk 0:00:02.9]} 51. Kc3 {[%clk 0:00:12.8]} 51... b5
{[%clk 0:00:03.1]} 52. Bg5 {[%clk 0:00:12.5]} 52... Rc4+ {[%clk 0:00:02.7]} 53.
Kb2 {[%clk 0:00:13]} 53... a6 {[%clk 0:00:03]} 54. Kb3 {[%clk 0:00:13.3]} 54...
Kxg3 {[%clk 0:00:03.2]} 55. Ka3 {[%clk 0:00:14.2]} 55... Kg4 {[%clk 0:00:03.3]}
56. Be7 {[%clk 0:00:14.7]} 56... Kf5 {[%clk 0:00:03.4]} 57. Kb2 {[%clk
0:00:15.5]} 57... Kxe5 {[%clk 0:00:03.7]} 58. Bf8 {[%clk 0:00:16.4]} 58... Ke4
{[%clk 0:00:03.1]} 59. Bxg7 {[%clk 0:00:16.9]} 59... e5 {[%clk 0:00:03.3]} 60.
Bf6 {[%clk 0:00:17.4]} 60... Kf5 {[%clk 0:00:03.3]} 61. Bg5 {[%clk 0:00:18.1]}
61... e4 {[%clk 0:00:03.4]} 62. Ka3 {[%clk 0:00:19]} 62... Kg4 {[%clk
0:00:03.3]} 63. Kb2 {[%clk 0:00:19.6]} 63... Kf3 {[%clk 0:00:03.4]} 64. Ka3
{[%clk 0:00:20.4]} 64... e3 {[%clk 0:00:03.6]} 65. Bxe3 {[%clk 0:00:20.8]} 65...
Kxe3 {[%clk 0:00:02.7]} 66. Kb2 {[%clk 0:00:21.7]} 66... Kd4 {[%clk 0:00:02.7]}
0-1

[Event "*** Titled Tuesday Blitz"]
[Site "Chess.com"]
[Date "2020.05.19"]
[Round "3"]
[White "marszach123"]
[Black "sopo-tereladze"]
[Result "1-0"]
[WhiteElo "2190"]
[BlackElo "2331"]
[TimeControl "180+1"]
[EndTime "12:29:57 PDT"]
[Termination "marszach123 won by checkmate"]

1. e4 {[%clk 0:02:57.6]} 1... e5 {[%clk 0:02:57.4]} 2. Nf3 {[%clk 0:02:58.1]}
2... Nc6 {[%clk 0:02:57.1]} 3. Bb5 {[%clk 0:02:58.6]} 3... a6 {[%clk 0:02:56.5]}
4. Ba4 {[%clk 0:02:58]} 4... Nf6 {[%clk 0:02:55.6]} 5. O-O {[%clk 0:02:57]} 5...
Be7 {[%clk 0:02:55.9]} 6. Re1 {[%clk 0:02:51.9]} 6... b5 {[%clk 0:02:56.1]} 7.
Bb3 {[%clk 0:02:52]} 7... O-O {[%clk 0:02:56.5]} 8. c3 {[%clk 0:02:52]} 8... d5
{[%clk 0:02:55.8]} 9. d4 {[%clk 0:02:51.2]} 9... exd4 {[%clk 0:02:49.5]} 10. e5
{[%clk 0:02:39.5]} 10... Ne4 {[%clk 0:02:48.9]} 11. cxd4 {[%clk 0:02:28.3]}
11... Bf5 {[%clk 0:02:39.8]} 12. Nc3 {[%clk 0:02:23.7]} 12... Nxc3 {[%clk
0:02:35.6]} 13. bxc3 {[%clk 0:02:23.2]} 13... Qd7 {[%clk 0:02:33.3]} 14. a4
{[%clk 0:02:20.5]} 14... Na5 {[%clk 0:02:19]} 15. Bc2 {[%clk 0:02:18.8]} 15...
Nc4 {[%clk 0:02:16.6]} 16. Bg5 {[%clk 0:02:02.2]} 16... Bxc2 {[%clk 0:02:12.7]}
17. Qxc2 {[%clk 0:02:01.2]} 17... h6 {[%clk 0:02:12.2]} 18. Bxe7 {[%clk
0:02:00.6]} 18... Qxe7 {[%clk 0:02:13.1]} 19. Qb3 {[%clk 0:01:54.3]} 19... c6
{[%clk 0:02:08.3]} 20. Ra2 {[%clk 0:01:33.1]} 20... Rfe8 {[%clk 0:02:01]} 21.
Rea1 {[%clk 0:01:32]} 21... Rad8 {[%clk 0:01:53.2]} 22. axb5 {[%clk 0:01:31]}
22... axb5 {[%clk 0:01:54.1]} 23. Ra7 {[%clk 0:01:30.2]} 23... Rd7 {[%clk
0:01:51.9]} 24. Rxd7 {[%clk 0:01:21.1]} 24... Qxd7 {[%clk 0:01:51.1]} 25. Ne1
{[%clk 0:01:21.5]} 25... Qf5 {[%clk 0:01:43.8]} 26. Qc2 {[%clk 0:01:11.2]} 26...
Qxc2 {[%clk 0:01:26.4]} 27. Nxc2 {[%clk 0:01:11.2]} 27... f6 {[%clk 0:01:27.3]}
28. f4 {[%clk 0:01:06.7]} 28... g5 {[%clk 0:01:19.8]} 29. g3 {[%clk 0:01:05.6]}
29... gxf4 {[%clk 0:01:19.1]} 30. gxf4 {[%clk 0:01:05.7]} 30... fxe5 {[%clk
0:01:20]} 31. fxe5 {[%clk 0:01:05.6]} 31... Kf7 {[%clk 0:01:18.8]} 32. Nb4
{[%clk 0:01:04.2]} 32... Ke6 {[%clk 0:01:11.3]} 33. Nxc6 {[%clk 0:01:03.4]}
33... Kf5 {[%clk 0:01:07.8]} 34. Nb4 {[%clk 0:00:55.8]} 34... Ke4 {[%clk
0:00:57.1]} 35. Re1+ {[%clk 0:00:50.9]} 35... Kf3 {[%clk 0:00:56.8]} 36. Nxd5
{[%clk 0:00:45.7]} 36... Rg8+ {[%clk 0:00:55.5]} 37. Kh1 {[%clk 0:00:45.1]}
37... Kf2 {[%clk 0:00:54.3]} 38. Ra1 {[%clk 0:00:39]} 38... Nd2 {[%clk
0:00:53.6]} 39. Nf4 {[%clk 0:00:23]} 39... Nf3 {[%clk 0:00:33.4]} 40. e6 {[%clk
0:00:16.8]} 40... Re8 {[%clk 0:00:25.5]} 41. d5 {[%clk 0:00:16.4]} 41... Ke3
{[%clk 0:00:24.8]} 42. Ng6 {[%clk 0:00:14.8]} 42... Ng5 {[%clk 0:00:19.8]} 43.
e7 {[%clk 0:00:14.3]} 43... Ne4 {[%clk 0:00:17.6]} 44. Re1+ {[%clk 0:00:12]}
44... Kd3 {[%clk 0:00:17.6]} 45. Rxe4 {[%clk 0:00:11.6]} 45... Kxe4 {[%clk
0:00:18.5]} 46. d6 {[%clk 0:00:12]} 46... Kf3 {[%clk 0:00:17.8]} 47. d7 {[%clk
0:00:08.8]} 47... Ra8 {[%clk 0:00:16.2]} 48. Ne5+ {[%clk 0:00:07.4]} 48... Kf2
{[%clk 0:00:14.6]} 49. Nd3+ {[%clk 0:00:07.1]} 49... Kf3 {[%clk 0:00:10]} 50.
Ne1+ {[%clk 0:00:07]} 50... Kf2 {[%clk 0:00:09.5]} 51. e8=Q {[%clk 0:00:06.4]}
51... Ra1 {[%clk 0:00:10.4]} 52. d8=Q {[%clk 0:00:03.8]} 52... b4 {[%clk
0:00:09.1]} 53. Qd4+ {[%clk 0:00:01.7]} 53... Kf1 {[%clk 0:00:08.1]} 54. Qd3+
{[%clk 0:00:01.7]} 54... Kf2 {[%clk 0:00:07.3]} 55. Qde2# {[%clk 0:00:02.2]} 1-0

[Event "*** Titled Tuesday Blitz"]
[Site "Chess.com"]
[Date "2020.05.19"]
[Round "3"]
[White "GlennTipton"]
[Black "Bastiandash"]
[Result "1-0"]
[WhiteElo "2480"]
[BlackElo "2185"]
[TimeControl "180+1"]
[EndTime "12:29:58 PDT"]
[Termination "GlennTipton won on time"]

1. d4 {[%clk 0:03:00.7]} 1... Nf6 {[%clk 0:02:59.9]} 2. Nf3 {[%clk 0:03:00.4]}
2... e6 {[%clk 0:02:59.7]} 3. Bf4 {[%clk 0:02:59.7]} 3... d5 {[%clk 0:03:00]} 4.
e3 {[%clk 0:02:59.4]} 4... Bd6 {[%clk 0:03:00.6]} 5. Bg3 {[%clk 0:02:58.2]} 5...
c5 {[%clk 0:02:59.4]} 6. c3 {[%clk 0:02:58.2]} 6... Qc7 {[%clk 0:02:57.7]} 7.
Nbd2 {[%clk 0:02:56.1]} 7... Nbd7 {[%clk 0:02:56.1]} 8. Bd3 {[%clk 0:02:53.1]}
8... b6 {[%clk 0:02:53.3]} 9. e4 {[%clk 0:02:50.2]} 9... Bxg3 {[%clk 0:02:50.8]}
10. hxg3 {[%clk 0:02:49.2]} 10... dxe4 {[%clk 0:02:51]} 11. Nxe4 {[%clk
0:02:48.9]} 11... Bb7 {[%clk 0:02:47.5]} 12. Nxf6+ {[%clk 0:02:42.3]} 12... Nxf6
{[%clk 0:02:48.4]} 13. Bb5+ {[%clk 0:02:42.3]} 13... Bc6 {[%clk 0:02:36]} 14.
Qa4 {[%clk 0:02:38.2]} 14... Bxb5 {[%clk 0:02:22.6]} 15. Qxb5+ {[%clk
0:02:37.6]} 15... Qd7 {[%clk 0:02:19.7]} 16. Qxd7+ {[%clk 0:02:37.1]} 16... Nxd7
{[%clk 0:02:07.7]} 17. O-O-O {[%clk 0:02:36]} 17... Ke7 {[%clk 0:02:02.2]} 18.
Rhe1 {[%clk 0:02:25.5]} 18... cxd4 {[%clk 0:01:59.3]} 19. Nxd4 {[%clk
0:02:22.2]} 19... Nc5 {[%clk 0:01:45.2]} 20. b4 {[%clk 0:02:05.7]} 20... Na4
{[%clk 0:01:36.6]} 21. Re3 {[%clk 0:02:04.8]} 21... Rac8 {[%clk 0:01:36]} 22.
Kc2 {[%clk 0:02:04.2]} 22... Rhd8 {[%clk 0:01:11.3]} 23. Kb3 {[%clk 0:02:03.3]}
23... b5 {[%clk 0:01:04.2]} 24. Red3 {[%clk 0:01:47.6]} 24... Rd5 {[%clk
0:00:31.2]} 25. Nxb5 {[%clk 0:01:40.4]} 25... Rxb5 {[%clk 0:00:18.7]} 26. Kxa4
{[%clk 0:01:37.5]} 26... a6 {[%clk 0:00:19.1]} 27. Rd7+ {[%clk 0:01:33.9]} 27...
Kf6 {[%clk 0:00:19.4]} 28. Kb3 {[%clk 0:01:32.8]} 28... a5 {[%clk 0:00:19.1]}
29. a3 {[%clk 0:01:24.4]} 29... axb4 {[%clk 0:00:19.2]} 30. axb4 {[%clk
0:01:17.6]} 30... Ra8 {[%clk 0:00:16.7]} 31. c4 {[%clk 0:01:12.8]} 31... Rf5
{[%clk 0:00:16.4]} 32. f4 {[%clk 0:01:10.4]} 32... Kg6 {[%clk 0:00:14.8]} 33. b5
{[%clk 0:01:07.8]} 33... Kh5 {[%clk 0:00:14.1]} 34. b6 {[%clk 0:01:01.9]} 34...
Kg4 {[%clk 0:00:14]} 35. b7 {[%clk 0:01:01.3]} 35... Rb8 {[%clk 0:00:14.4]} 36.
Rc7 {[%clk 0:00:58.4]} 36... Kxg3 {[%clk 0:00:14.8]} 37. c5 {[%clk 0:00:53.9]}
37... Rxc5 {[%clk 0:00:09.7]} 38. Rxc5 {[%clk 0:00:51.6]} 38... Rxb7+ {[%clk
0:00:10.3]} 39. Kc3 {[%clk 0:00:50.1]} 39... Kxf4 {[%clk 0:00:08.7]} 40. Rd4+
{[%clk 0:00:48.4]} 40... Kg3 {[%clk 0:00:07.7]} 41. Rg5+ {[%clk 0:00:48.1]}
41... Kf2 {[%clk 0:00:06.5]} 42. Rxg7 {[%clk 0:00:45.9]} 42... h5 {[%clk
0:00:06]} 43. Rf4+ {[%clk 0:00:40.8]} 43... Ke3 {[%clk 0:00:04.3]} 44. Rh4
{[%clk 0:00:39.7]} 44... Rc7+ {[%clk 0:00:04]} 45. Kb4 {[%clk 0:00:36.7]} 45...
Rb7+ {[%clk 0:00:01.6]} 46. Kc5 {[%clk 0:00:36.5]} 46... Ra7 {[%clk 0:00:02.1]}
47. Kd6 {[%clk 0:00:34.4]} 47... Ra6+ {[%clk 0:00:01.8]} 48. Ke7 {[%clk
0:00:34.1]} 48... Ra5 {[%clk 0:00:02.1]} 49. Kxf7 {[%clk 0:00:32.6]} 49... e5
{[%clk 0:00:01.8]} 50. Rxh5 {[%clk 0:00:30.4]} 50... Ra7+ {[%clk 0:00:02]} 51.
Kg8 {[%clk 0:00:30.2]} 51... Ra8+ {[%clk 0:00:02.3]} 52. Kh7 {[%clk 0:00:30.3]}
52... e4 {[%clk 0:00:03.2]} 53. g4 {[%clk 0:00:28.8]} 53... Kf4 {[%clk
0:00:02.5]} 54. g5 {[%clk 0:00:28.2]} 54... Kg4 {[%clk 0:00:02]} 55. Rh1 {[%clk
0:00:27.6]} 55... e3 {[%clk 0:00:02.5]} 56. g6 {[%clk 0:00:26.3]} 56... Kg5
{[%clk 0:00:02.3]} 57. Re7 {[%clk 0:00:25.1]} 1-0

[Event "*** Titled Tuesday Blitz"]
[Site "Chess.com"]
[Date "2020.05.19"]
[Round "3"]
[White "TigrVShlyape"]
[Black "LostaBet95"]
[Result "1/2-1/2"]
[WhiteElo "2807"]
[BlackElo "2555"]
[TimeControl "180+1"]
[EndTime "12:30:00 PDT"]
[Termination "Game drawn - insufficient material"]

1. d4 {[%clk 0:03:00.9]} 1... d5 {[%clk 0:02:58]} 2. Nf3 {[%clk 0:02:59.7]} 2...
Nf6 {[%clk 0:02:58]} 3. Bf4 {[%clk 0:02:59]} 3... c5 {[%clk 0:02:57.5]} 4. e3
{[%clk 0:02:58.9]} 4... Nc6 {[%clk 0:02:57.9]} 5. Nbd2 {[%clk 0:02:58]} 5... e6
{[%clk 0:02:57.4]} 6. c3 {[%clk 0:02:57.7]} 6... Bd6 {[%clk 0:02:57.8]} 7. Bg3
{[%clk 0:02:57.1]} 7... O-O {[%clk 0:02:58.2]} 8. Bd3 {[%clk 0:02:57]} 8... b6
{[%clk 0:02:58.7]} 9. Qe2 {[%clk 0:02:56.8]} 9... Bb7 {[%clk 0:02:56.8]} 10. Rd1
{[%clk 0:02:56.7]} 10... Re8 {[%clk 0:02:47.4]} 11. e4 {[%clk 0:02:55.5]} 11...
Be7 {[%clk 0:02:46.3]} 12. e5 {[%clk 0:02:54.7]} 12... Nh5 {[%clk 0:02:46.3]}
13. a3 {[%clk 0:02:52.9]} 13... cxd4 {[%clk 0:02:36.9]} 14. Nxd4 {[%clk
0:02:49.5]} 14... g6 {[%clk 0:02:32.1]} 15. Nxc6 {[%clk 0:02:45.3]} 15... Bxc6
{[%clk 0:02:31.8]} 16. Nf3 {[%clk 0:02:45.4]} 16... Bc5 {[%clk 0:02:23.9]} 17.
Nd4 {[%clk 0:02:13.7]} 17... Ba4 {[%clk 0:02:16.9]} 18. Ra1 {[%clk 0:01:49.8]}
18... f6 {[%clk 0:01:59.2]} 19. Nf3 {[%clk 0:01:06.8]} 19... Bf8 {[%clk
0:01:43.2]} 20. O-O {[%clk 0:01:05]} 20... Nxg3 {[%clk 0:01:40.2]} 21. hxg3
{[%clk 0:01:04.5]} 21... f5 {[%clk 0:01:36.4]} 22. Nd4 {[%clk 0:01:03.5]} 22...
a5 {[%clk 0:01:33.7]} 23. g4 {[%clk 0:01:03.2]} 23... Bc5 {[%clk 0:01:33]} 24.
gxf5 {[%clk 0:01:01.8]} 24... gxf5 {[%clk 0:01:31.9]} 25. g3 {[%clk 0:00:54.5]}
25... Ra7 {[%clk 0:01:30.6]} 26. Kg2 {[%clk 0:00:54.2]} 26... Rg7 {[%clk
0:01:29.9]} 27. Rh1 {[%clk 0:00:54.7]} 27... f4 {[%clk 0:01:27.3]} 28. Qh5
{[%clk 0:00:51.7]} 28... Qd7 {[%clk 0:01:17.5]} 29. Rh4 {[%clk 0:00:50.3]} 29...
Bxd4 {[%clk 0:01:10.1]} 30. cxd4 {[%clk 0:00:49.9]} 30... fxg3 {[%clk
0:01:09.4]} 31. fxg3 {[%clk 0:00:48.6]} 31... Bb5 {[%clk 0:01:05.4]} 32. Bc2
{[%clk 0:00:28]} 32... Qf7 {[%clk 0:00:49]} 33. Qxf7+ {[%clk 0:00:26.7]} 33...
Rxf7 {[%clk 0:00:49.9]} 34. Rg4+ {[%clk 0:00:22.6]} 34... Rg7 {[%clk 0:00:49]}
35. Rxg7+ {[%clk 0:00:21.4]} 35... Kxg7 {[%clk 0:00:49.9]} 36. Rh1 {[%clk
0:00:21.6]} 36... h6 {[%clk 0:00:49.5]} 37. Rh4 {[%clk 0:00:20.1]} 37... Be2
{[%clk 0:00:49.4]} 38. Kf2 {[%clk 0:00:19.5]} 38... Bb5 {[%clk 0:00:46.2]} 39.
Rg4+ {[%clk 0:00:18]} 39... Kf8 {[%clk 0:00:40.3]} 40. Rg6 {[%clk 0:00:18.1]}
40... Ke7 {[%clk 0:00:39]} 41. Rg7+ {[%clk 0:00:17.5]} 41... Kd8 {[%clk
0:00:35.4]} 42. Ke3 {[%clk 0:00:17.3]} 42... Re7 {[%clk 0:00:34.3]} 43. Rg6
{[%clk 0:00:16.9]} 43... h5 {[%clk 0:00:31.8]} 44. Rh6 {[%clk 0:00:16.3]} 44...
Rg7 {[%clk 0:00:31.1]} 45. Kf4 {[%clk 0:00:16.6]} 45... Rg4+ {[%clk 0:00:29]}
46. Kf3 {[%clk 0:00:14.8]} 46... Rxd4 {[%clk 0:00:27.7]} 47. Rxe6 {[%clk
0:00:14.9]} 47... Rd2 {[%clk 0:00:24.9]} 48. Bf5 {[%clk 0:00:14.6]} 48... Be2+
{[%clk 0:00:21.6]} 49. Kf4 {[%clk 0:00:14.3]} 49... Rxb2 {[%clk 0:00:22.5]} 50.
Rc6 {[%clk 0:00:13.2]} 50... Bg4 {[%clk 0:00:18.8]} 51. Bxg4 {[%clk 0:00:12]}
51... hxg4 {[%clk 0:00:19.7]} 52. Kxg4 {[%clk 0:00:11.5]} 52... Ke7 {[%clk
0:00:17.4]} 53. Kf5 {[%clk 0:00:10.5]} 53... Rf2+ {[%clk 0:00:16.4]} 54. Kg5
{[%clk 0:00:10.3]} 54... Rf3 {[%clk 0:00:16.6]} 55. g4 {[%clk 0:00:09.4]} 55...
Rxa3 {[%clk 0:00:16.8]} 56. Rxb6 {[%clk 0:00:09.5]} 56... Rf3 {[%clk 0:00:15.6]}
57. Rb5 {[%clk 0:00:09.3]} 57... Ke6 {[%clk 0:00:15.4]} 58. Rxa5 {[%clk
0:00:09.4]} 58... Kxe5 {[%clk 0:00:15.9]} 59. Ra8 {[%clk 0:00:08.8]} 59... d4
{[%clk 0:00:15.4]} 60. Re8+ {[%clk 0:00:09.2]} 60... Kd5 {[%clk 0:00:15.8]} 61.
Rd8+ {[%clk 0:00:09.3]} 61... Kc4 {[%clk 0:00:16.1]} 62. Kh6 {[%clk 0:00:07.7]}
62... Rh3+ {[%clk 0:00:15.5]} 63. Kg6 {[%clk 0:00:07.3]} 63... d3 {[%clk
0:00:15]} 64. g5 {[%clk 0:00:07.6]} 64... Rg3 {[%clk 0:00:15.3]} 65. Kf6 {[%clk
0:00:07.7]} 65... Rf3+ {[%clk 0:00:14.8]} 66. Ke6 {[%clk 0:00:07.9]} 66... Rg3
{[%clk 0:00:14.3]} 67. Kf6 {[%clk 0:00:08.1]} 67... Kc3 {[%clk 0:00:14.4]} 68.
g6 {[%clk 0:00:08]} 68... d2 {[%clk 0:00:14.8]} 69. Rxd2 {[%clk 0:00:07.5]}
69... Kxd2 {[%clk 0:00:15.7]} 70. g7 {[%clk 0:00:07.9]} 70... Kd3 {[%clk
0:00:14.7]} 71. Kf7 {[%clk 0:00:07.9]} 71... Rxg7+ {[%clk 0:00:15]} 72. Kxg7
{[%clk 0:00:07.7]} 1/2-1/2